bitfinex/quotes_ETHUSD_20241130
["timestamp","ask_amount","ask_price","bid_price","bid_amount"]
[1732975307371,3.44140358,3672.2,3672.1,14.66763439]
[1732975308055,3.44140358,3672.2,3672.1,19.35002213]
[1732975308250,3.44140358,3672.2,3672.1,19.35109477]
[1732975308812,3.44140358,3672.2,3672.1,19.35094993]
[1732975309020,4.55140358,3672.2,3672.1,14.9816417]
[1732975309185,1.11,3672.5,3672.2,4.0224]
[1732975309393,1.11,3672.5,3672.2,9.9555955]
[1732975309692,0.1,3672.3,3672.2,4.33640731]
[1732975310473,0.1,3672.3,3672.2,9.9555955]
[1732975310691,1.21,3672.3,3672.2,9.9555955]
[1732975311389,1.03974008,3672.3,3672.2,9.9555955]
[1732975312073,1.03974008,3672.3,3672.2,4.33640731]
[1732975312277,1.15028159,3672.3,3672.2,18.7155955]
[1732975312580,1.5647,3673.2,3672.4,5.0]
[1732975312786,6.58,3673.1,3673.0,20.62963798]
[1732975313774,6.58,3673.1,3673.0,15.94523439]
[1732975313976,7.69,3673.1,3673.0,15.94523439]
[1732975314217,7.69,3673.1,3673.0,16.04523439]
[1732975314574,7.69,3673.1,3673.0,19.59523439]
[1732975314770,0.571571,3673.6,3673.5,5.1]
[1732975315014,0.571571,3673.6,3673.5,10.18523439]
[1732975315521,1.681571,3673.6,3673.5,10.18523439]
[1732975316229,1.681571,3673.6,3673.5,10.28523439]
[1732975316439,1.681571,3673.6,3673.5,14.96791122]
[1732975316579,1.681571,3673.6,3673.5,10.28523439]
[1732975316924,1.681571,3673.6,3673.5,10.83523439]
[1732975317125,2.791571,3673.6,3673.5,10.83523439]
[1732975318331,1.79257853,3673.6,3673.5,19.59523439]
[1732975319023,2.90257853,3673.6,3673.5,19.59523439]
[1732975319576,2.90257853,3673.6,3673.5,20.1318606]
[1732975320526,4.01257853,3673.6,3673.5,20.1318606]
[1732975322327,5.12257853,3673.6,3673.5,20.1318606]
[1732975322575,5.12257853,3673.6,3673.5,24.80753634]
[1732975322884,6.71137853,3673.6,3673.5,20.0318606]
[1732975323027,6.71137853,3673.6,3673.5,17.29662621]
[1732975323479,6.71137853,3673.6,3673.5,21.25518339]
[1732975323645,6.71137853,3673.6,3673.5,16.76]
[1732975324069,7.82137853,3673.6,3673.5,13.76]
[1732975324229,6.82291564,3673.6,3673.5,17.15346198]
[1732975324572,6.82291564,3673.6,3673.5,18.24153198]
[1732975325343,6.82291564,3673.6,3673.5,21.79207922]
[1732975325546,7.93291564,3673.6,3673.5,18.39807]
[1732975327380,9.04291564,3673.6,3673.5,18.39807]
[1732975328349,9.04291564,3673.6,3673.5,22.35886129]
[1732975329072,10.15291564,3673.6,3673.5,22.35886129]
[1732975330250,9.15402546,3673.6,3673.5,18.74824398]
[1732975330457,7.56522546,3673.6,3673.5,20.93347837]
[1732975330675,2.69749429,3673.6,3673.5,20.93347837]
[1732975330939,2.69749429,3673.6,3673.5,18.84824398]
[1732975331552,2.69749429,3673.6,3673.5,24.46939937]
[1732975332174,2.69749429,3673.6,3673.5,19.36939937]
[1732975332370,3.80749429,3673.6,3673.5,24.36939937]
[1732975332580,3.80749429,3673.6,3673.5,24.46939937]
[1732975332881,3.80749429,3673.6,3673.5,18.84824398]
[1732975333089,3.80749429,3673.6,3673.5,24.47073869]
[1732975333384,3.80749429,3673.6,3673.5,18.84824398]
[1732975334065,4.91749429,3673.6,3673.5,18.84824398]
[1732975335302,2.31749429,3673.6,3673.5,20.93347837]
[1732975335471,2.31749429,3673.6,3673.5,30.45047837]
[1732975335815,3.42749429,3673.6,3673.5,30.45047837]
[1732975335964,0.37951724,3673.6,3673.5,32.76185781]
[1732975336164,3.94445402,3674.1,3674.0,3.1]
[1732975336369,2.74477333,3674.1,3674.0,5.18523439]
[1732975336614,2.74477333,3674.1,3674.0,10.28523439]
[1732975337166,3.85477333,3674.1,3674.0,10.18523439]
[1732975337412,3.85477333,3674.1,3674.0,10.08523439]
[1732975337617,5.46067333,3674.1,3674.0,15.713271]
[1732975337881,5.46067333,3674.1,3674.0,7.08523439]
[1732975338079,5.46067333,3674.1,3674.0,10.63523439]
[1732975338307,5.46067333,3674.1,3674.0,5.08523439]
[1732975338505,5.46067333,3674.1,3674.0,18.84523439]
[1732975338876,6.57067333,3674.1,3674.0,18.84523439]
[1732975339629,6.57067333,3674.1,3674.0,19.39523439]
[1732975340639,7.68067333,3674.1,3674.0,19.39523439]
[1732975341185,7.68067333,3674.1,3674.0,17.31]
[1732975341398,7.68067333,3674.1,3674.0,12.31]
[1732975341982,8.79067333,3674.1,3674.0,12.31]
[1732975342181,8.79067333,3674.1,3674.0,14.39523439]
[1732975342421,7.79108249,3674.1,3674.0,14.39523439]
[1732975342682,7.79108249,3674.1,3674.0,19.09278908]
[1732975343453,7.79108249,3674.1,3674.0,14.39523439]
[1732975343724,8.90108249,3674.1,3674.0,12.31]
[1732975344029,8.90108249,3674.1,3674.0,15.73733524]
[1732975344922,8.90108249,3674.1,3674.0,11.76]
[1732975345319,1.5118,3674.0,3673.9,3.0]
[1732975345481,1.5118,3674.0,3673.9,8.55]
[1732975345687,1.5118,3674.0,3673.9,8.90017398]
[1732975346885,2.6218,3674.0,3673.9,8.90017398]
[1732975347940,1.11,3674.0,3673.9,8.90017398]
[1732975348235,1.11,3674.0,3673.9,17.66017398]
[1732975348436,0.11038995,3674.0,3673.9,17.76017398]
[1732975348736,1.22038995,3674.0,3673.9,19.03485288]
[1732975349944,1.22038995,3674.0,3673.9,17.66017398]
[1732975350086,2.33038995,3674.0,3673.9,17.66017398]
[1732975350590,2.33038995,3674.0,3673.9,13.1957304]
[1732975350792,2.33038995,3674.0,3673.9,18.1957304]
[1732975351886,3.44038995,3674.0,3673.9,18.1957304]
[1732975353641,4.55038995,3674.0,3673.9,18.1957304]
[1732975354043,4.55038995,3674.0,3673.9,18.2957304]
[1732975354255,3.55078883,3674.0,3673.9,18.2957304]
[1732975354547,3.01444027,3674.0,3673.9,18.2957304]
[1732975354753,0.09021711,3674.1,3674.0,0.55]
[1732975354959,0.09021711,3674.1,3674.0,5.98540837]
[1732975355104,0.09021711,3674.1,3674.0,12.5514403]
[1732975355307,0.09021711,3674.1,3674.0,14.86833449]
[1732975355609,0.09021711,3674.1,3674.0,8.30230256]
[1732975356849,1.20021711,3674.1,3674.0,8.30230256]
[1732975358452,2.31021711,3674.1,3674.0,8.30230256]
[1732975359950,3.25021711,3674.1,3674.0,8.30230256]
[1732975360324,2.25097187,3674.1,3674.0,17.06230256]
[1732975360976,2.25097187,3674.1,3674.0,21.33402036]
[1732975361172,2.25097187,3674.1,3674.0,23.65091455]
[1732975361359,0.13097187,3674.2,3674.1,0.2]
[1732975361554,0.13097187,3674.2,3674.1,4.09980014]
[1732975361770,0.13097187,3674.2,3674.1,10.68841213]
[1732975361971,0.13097187,3674.2,3674.1,13.61480014]
[1732975362173,0.74365776,3674.4,3674.3,5.2]
[1732975362328,0.20376926,3674.4,3674.3,9.09980014]
[1732975362535,0.20376926,3674.4,3674.3,17.85980014]
[1732975362733,0.20376926,3674.4,3674.3,18.86210014]
[1732975362972,2.22,3674.6,3674.4,12.65980014]
[1732975363274,0.85,3674.6,3674.5,0.65]
[1732975363480,0.85,3674.6,3674.5,19.75126875]
[1732975364171,0.3,3674.6,3674.5,19.75126875]
[1732975364378,1.11,3674.7,3674.6,3.1]
[1732975364532,1.11,3675.0,3674.9,12.27046878]
[1732975364735,1.11,3675.0,3674.9,10.18523439]
[1732975365053,1.11,3675.0,3674.9,2.18523439]
[1732975366332,1.22111857,3675.0,3674.9,14.49523439]
[1732975367066,0.5308029,3675.0,3674.9,14.49523439]
[1732975368078,1.6408029,3675.0,3674.9,14.49523439]
[1732975368288,1.6408029,3675.0,3674.9,19.49523439]
[1732975368671,1.6408029,3675.0,3674.9,20.49753439]
[1732975368992,1.6408029,3675.0,3674.9,30.55276413]
[1732975369200,1.6408029,3675.0,3674.9,32.86965832]
[1732975369908,2.7508029,3675.0,3674.9,32.86965832]
[1732975370987,2.19673329,3675.0,3674.9,32.86965832]
[1732975371502,3.30673329,3675.0,3674.9,32.86965832]
[1732975372301,2.30721038,3675.0,3674.9,32.86965832]
[1732975373579,3.41721038,3675.0,3674.9,32.86965832]
[1732975375206,4.52721038,3675.0,3674.9,32.86965832]
[1732975376121,3.9944637,3675.0,3674.9,32.86965832]
[1732975376997,6.7468637,3675.0,3674.9,17.25335832]
[1732975377300,6.7468637,3675.0,3674.9,19.93646413]
[1732975378362,5.7472978,3675.0,3674.9,19.93646413]
[1732975378688,6.8572978,3675.0,3674.9,19.93646413]
[1732975380175,7.9672978,3675.0,3674.9,19.93646413]
[1732975380411,6.3248978,3675.0,3674.9,19.93646413]
[1732975381630,6.1248978,3675.0,3674.9,19.93646413]
[1732975381828,7.2348978,3675.0,3674.9,19.93646413]
[1732975382732,7.2348978,3675.0,3674.9,17.85122974]
[1732975382910,7.2348978,3675.0,3674.9,19.93646413]
[1732975383087,7.2148978,3675.0,3674.9,19.93646413]
[1732975383432,8.0648978,3675.0,3674.9,19.93646413]
[1732975384279,7.06522986,3675.0,3674.9,19.93646413]
[1732975384785,6.86522986,3675.0,3674.9,19.93646413]
[1732975385029,7.61522986,3675.0,3674.9,19.93646413]
[1732975385206,7.51522986,3675.0,3674.9,19.93646413]
[1732975385428,6.15522986,3675.0,3674.9,19.93646413]
[1732975386265,5.82522986,3675.0,3674.9,19.93646413]
[1732975386558,2.35522986,3675.0,3674.9,29.45046413]
[1732975386705,3.46522986,3675.0,3674.9,38.35362707]
[1732975387707,3.46522986,3675.0,3674.9,31.76735832]
[1732975388410,4.57522986,3675.0,3674.9,31.76735832]
[1732975388728,4.57522986,3675.0,3674.9,36.26839268]
[1732975389048,4.57522986,3675.0,3674.9,26.20439268]
[1732975389357,4.57522986,3675.0,3674.9,17.30122974]
[1732975389922,5.68522986,3675.0,3674.9,17.30122974]
[1732975390360,4.68577978,3675.0,3674.9,17.30122974]
[1732975390503,4.68577978,3675.0,3674.9,17.85122974]
[1732975390709,3.77417978,3675.0,3674.9,17.85122974]
[1732975390940,3.77417978,3675.0,3674.9,24.43749849]
[1732975391122,3.77417978,3675.0,3674.9,17.85122974]
[1732975391531,4.88417978,3675.0,3674.9,17.85122974]
[1732975391921,4.88417978,3675.0,3674.9,24.43749849]
[1732975392654,4.88417978,3675.0,3674.9,17.85122974]
[1732975392949,6.50397978,3675.0,3674.9,17.85122974]
[1732975393173,7.61397978,3675.0,3674.9,17.85122974]
[1732975393306,7.61397978,3675.0,3674.9,24.43749849]
[1732975394246,7.61397978,3675.0,3674.9,23.88749849]
[1732975394413,7.61397978,3675.0,3674.9,17.30122974]
[1732975394735,7.61397978,3675.0,3674.9,19.61812393]
[1732975394909,5.23504848,3675.0,3674.9,17.30122974]
[1732975395150,3.02607885,3675.0,3674.9,17.30122974]
[1732975395349,3.02607885,3675.0,3674.9,17.85122974]
[1732975395547,2.02607885,3675.0,3674.9,17.85122974]
[1732975396251,1.02645325,3675.0,3674.9,17.85122974]
[1732975396753,2.13645325,3675.0,3674.9,17.85122974]
[1732975396954,2.12565325,3675.0,3674.9,17.85122974]
[1732975397351,1.99929245,3675.0,3674.9,17.85122974]
[1732975398396,3.10929245,3675.0,3674.9,17.85122974]
[1732975400123,4.21929245,3675.0,3674.9,18.12362974]
[1732975400457,4.21929245,3675.0,3674.9,13.12362974]
[1732975400662,4.21929245,3675.0,3674.9,18.12362974]
[1732975401769,5.32929245,3675.0,3674.9,18.12362974]
[1732975402394,4.3296022,3675.0,3674.9,18.12362974]
[1732975403380,5.4396022,3675.0,3674.9,18.12362974]
[1732975403946,5.4396022,3675.0,3674.9,27.63762974]
[1732975404214,5.0196022,3675.0,3674.9,29.95452393]
[1732975405059,5.5696022,3675.0,3674.9,29.95452393]
[1732975406819,6.6796022,3675.0,3674.9,29.95452393]
[1732975407160,4.8279313,3675.0,3674.9,35.05682393]
[1732975407511,31.33125225,3675.5,3675.4,13.76]
[1732975407665,30.24855459,3675.5,3675.4,25.35723439]
[1732975407988,30.22275459,3675.5,3675.4,25.35723439]
[1732975408189,30.22275459,3675.5,3675.4,26.35953439]
[1732975408395,6.33113893,3675.5,3675.4,26.45953439]
[1732975408558,6.33113893,3675.5,3675.4,32.77642858]
[1732975409175,6.33113893,3675.5,3675.4,20.16212858]
[1732975409383,6.33113893,3675.5,3675.4,23.39523439]
[1732975409705,6.33113893,3675.5,3675.4,32.90723439]
[1732975410012,6.90695698,3675.5,3675.4,30.22412858]
[1732975410212,6.65810317,3675.5,3675.4,25.16212858]
[1732975410393,6.65810317,3675.5,3675.4,22.84523439]
[1732975411306,6.65810317,3675.5,3675.4,17.76]
[1732975411512,6.65810317,3675.5,3675.4,24.35107461]
[1732975411694,7.76810317,3675.5,3675.4,20.35107461]
[1732975412277,7.76810317,3675.5,3675.4,13.76]
[1732975412598,7.76810317,3675.5,3675.4,17.31]
[1732975413295,8.87810317,3675.5,3675.4,23.90150011]
[1732975414307,7.87843906,3675.5,3675.4,23.90150011]
[1732975414917,8.98843906,3675.5,3675.4,23.90150011]
[1732975415095,8.98843906,3675.5,3675.4,17.31]
[1732975416198,8.98843906,3675.5,3675.4,23.90150011]
[1732975416711,10.09843906,3675.5,3675.4,23.90150011]
[1732975417008,10.09843906,3675.5,3675.4,17.31]
[1732975418281,11.20843906,3675.5,3675.4,17.31]
[1732975419081,11.20843906,3675.5,3675.4,23.90150011]
[1732975419871,11.20843906,3675.5,3675.4,25.9867345]
[1732975419872,12.31843906,3675.5,3675.4,25.9867345]
[1732975420181,12.31843906,3675.5,3675.4,26.2591345]
[1732975420384,9.69898684,3675.5,3675.4,19.66763439]
[1732975420594,9.69898684,3675.5,3675.4,23.66763439]
[1732975421729,10.80898684,3675.5,3675.4,23.66763439]
[1732975423277,11.91898684,3675.5,3675.4,23.66763439]
[1732975423900,13.48448684,3675.5,3675.4,23.66763439]
[1732975425117,12.02898684,3675.5,3675.4,23.66763439]
[1732975425985,11.47898684,3675.5,3675.4,33.17963439]
[1732975426324,10.48344273,3675.5,3675.4,35.49652858]
[1732975426693,11.59344273,3675.5,3675.4,35.49652858]
[1732975428292,12.70344273,3675.5,3675.4,35.49652858]
[1732975428527,11.62408273,3675.5,3675.4,35.49652858]
[1732975428687,9.48408273,3675.5,3675.4,36.49882858]
[1732975428882,8.38408273,3675.5,3675.4,36.49882858]
[1732975429108,8.08408273,3675.5,3675.4,36.49882858]
[1732975429623,7.38408273,3675.5,3675.4,36.49882858]
[1732975429950,0.84801225,3676.0,3675.9,18.3123]
[1732975430251,0.84801225,3676.0,3675.9,33.90753439]
[1732975430440,0.84801225,3676.0,3675.9,36.22442858]
[1732975431512,1.95801225,3676.0,3675.9,31.22442858]
[1732975431708,1.95801225,3676.0,3675.9,36.22442858]
[1732975432331,5.55,3676.2,3676.0,5.0]
[1732975432506,5.55,3676.2,3676.0,14.86689419]
[1732975433239,2.22,3676.1,3676.0,14.86689419]
[1732975434311,2.22,3676.1,3676.0,22.061]
[1732975434616,2.22,3676.1,3676.0,25.38019419]
[1732975434813,3.33,3676.1,3676.0,25.38019419]
[1732975435318,3.33,3676.1,3676.0,34.14019419]
[1732975436338,2.33,3676.1,3676.0,34.14019419]
[1732975436507,3.44,3676.1,3676.0,34.14019419]
[1732975437452,3.25,3676.1,3676.0,34.67591137]
[1732975438264,2.25127973,3676.1,3676.0,34.67591137]
[1732975438416,3.36127973,3676.1,3676.0,34.67591137]
[1732975439551,5.55,3676.2,3676.0,34.67591137]
[1732975439755,2.93127973,3676.2,3676.1,5.86689419]
[1732975439967,2.67127973,3676.2,3676.1,9.86689419]
[1732975440259,1.00845484,3676.2,3676.1,9.86689419]
[1732975440462,9.52685229,3676.3,3676.1,9.86689419]
[1732975440867,9.44685229,3676.3,3676.2,3.55]
[1732975441017,9.44685229,3676.3,3676.2,7.55]
[1732975441420,9.44685229,3676.3,3676.2,16.31]
[1732975441714,10.19685229,3676.3,3676.2,16.31]
[1732975442162,9.89685229,3676.3,3676.2,16.31]
[1732975442713,8.37685229,3676.3,3676.2,16.31]
[1732975443454,9.48685229,3676.3,3676.2,16.31]
[1732975443968,9.10685229,3676.3,3676.2,16.31]
[1732975444313,8.10819412,3676.3,3676.2,16.31]
[1732975444518,8.10819412,3676.3,3676.2,27.8875195]
[1732975444757,8.05819412,3676.3,3676.2,27.8875195]
[1732975445063,8.99547965,3676.3,3676.2,27.8875195]
[1732975445441,8.89547965,3676.3,3676.2,27.8875195]
[1732975446323,8.89547965,3676.3,3676.2,21.31]
[1732975446769,10.00547965,3676.3,3676.2,23.62689419]
[1732975446916,10.00547965,3676.3,3676.2,21.31]
[1732975448319,11.11547965,3676.3,3676.2,21.31]
[1732975449162,12.72817965,3676.3,3676.2,23.07689419]
[1732975449471,12.72817965,3676.3,3676.2,20.76]
[1732975449969,12.72817965,3676.3,3676.2,17.76]
[1732975449970,13.83817965,3676.3,3676.2,17.76]
[1732975450173,13.83817965,3676.3,3676.2,17.58736057]
[1732975450327,12.83870054,3676.3,3676.2,17.58736057]
[1732975450866,12.83870054,3676.3,3676.2,18.13736057]
[1732975451078,12.83870054,3676.3,3676.2,21.13736057]
[1732975451571,13.94870054,3676.3,3676.2,21.13736057]
[1732975452334,13.94870054,3676.3,3676.2,17.31]
[1732975453385,16.56457059,3676.3,3676.2,13.76]
[1732975453983,15.05870054,3676.3,3676.2,13.76]
[1732975454470,15.05870054,3676.3,3676.2,14.31]
[1732975454878,16.16870054,3676.3,3676.2,17.31]
[1732975455234,16.16870054,3676.3,3676.2,21.31]
[1732975455963,14.55600054,3676.3,3676.2,30.82]
[1732975456170,14.55600054,3676.3,3676.2,33.13689419]
[1732975456474,14.66669241,3676.3,3676.2,23.62689419]
[1732975456860,14.66669241,3676.3,3676.2,21.31]
[1732975457284,16.20789241,3676.3,3676.2,21.31]
[1732975458262,17.31789241,3676.3,3676.2,21.31]
[1732975459372,9.76630552,3676.3,3676.2,21.31]
[1732975459876,10.87630552,3676.3,3676.2,21.31]
[1732975461502,11.98630552,3676.3,3676.2,21.31]
[1732975462150,10.44510552,3676.3,3676.2,21.31]
[1732975462392,9.44556732,3676.3,3676.2,21.31]
[1732975462576,9.44556732,3676.3,3676.2,23.62689419]
[1732975462778,9.44556732,3676.3,3676.2,27.89387971]
[1732975462993,9.44556732,3676.3,3676.2,21.31]
[1732975463304,10.55556732,3676.3,3676.2,21.31]
[1732975463604,10.55556732,3676.3,3676.2,22.246596]
[1732975464953,11.66556732,3676.3,3676.2,21.31]
[1732975466392,13.20676732,3676.3,3676.2,27.89773537]
[1732975466594,14.31676732,3676.3,3676.2,23.62689419]
[1732975466836,14.31676732,3676.3,3676.2,21.31]
[1732975468296,14.42716323,3676.3,3676.2,21.31]
[1732975468525,12.88596323,3676.3,3676.2,27.89773537]
[1732975468710,12.88596323,3676.3,3676.2,37.40773537]
[1732975468917,12.88596323,3676.3,3676.2,33.13689419]
[1732975470152,13.99596323,3676.3,3676.2,33.13689419]
[1732975471607,15.10596323,3676.3,3676.2,33.13689419]
[1732975472151,14.17596323,3676.3,3676.2,33.13689419]
[1732975472441,13.90596323,3676.3,3676.2,33.13689419]
[1732975472619,13.88596323,3676.3,3676.2,33.13689419]
[1732975472815,13.38596323,3676.3,3676.2,33.13689419]
[1732975473018,12.21596323,3676.3,3676.2,33.13689419]
[1732975473223,13.32596323,3676.3,3676.2,34.22394019]
[1732975474315,12.33182582,3676.3,3676.2,34.22394019]
[1732975475120,13.44182582,3676.3,3676.2,34.22394019]
[1732975475316,13.32,3676.3,3676.2,34.22394019]
[1732975475652,9.52182582,3676.3,3676.2,34.22394019]
[1732975476340,6.83182582,3676.3,3676.2,34.22394019]
[1732975476859,6.83182582,3676.3,3676.2,24.71394019]
[1732975477165,7.94182582,3676.3,3676.2,22.397046]
[1732975478634,9.05182582,3676.3,3676.2,22.397046]
[1732975480342,9.16287418,3676.3,3676.2,22.397046]
[1732975482069,10.27287418,3676.3,3676.2,22.397046]
[1732975482458,10.27287418,3676.3,3676.2,31.907046]
[1732975482665,10.27287418,3676.3,3676.2,34.22394019]
[1732975483637,11.38287418,3676.3,3676.2,34.22394019]
[1732975484039,10.48287418,3676.3,3676.2,34.22394019]
[1732975484234,10.38287418,3676.3,3676.2,34.22394019]
[1732975484440,9.38287418,3676.3,3676.2,34.22394019]
[1732975484756,2.42287418,3676.3,3676.2,35.22624019]
[1732975485137,2.90538418,3676.3,3676.2,35.22624019]
[1732975485862,2.68538418,3676.3,3676.2,35.22624019]
[1732975486063,0.26062465,3676.3,3676.2,35.22624019]
[1732975486388,0.37161389,3676.5,3676.3,0.55]
[1732975486568,0.37161389,3676.5,3676.4,5.62513848]
[1732975486772,1.48161389,3676.5,3676.4,5.62513848]
[1732975486981,1.48161389,3676.5,3676.4,4.48604109]
[1732975487577,1.48161389,3676.5,3676.4,8.48604109]
[1732975488354,2.59161389,3676.5,3676.4,8.48604109]
[1732975489299,9.99,3677.0,3676.4,8.48604109]
[1732975489300,9.99,3677.0,3676.9,8.55]
[1732975489463,9.8483443,3677.0,3676.9,32.75534109]
[1732975489662,9.25740804,3677.0,3676.9,35.06542608]
[1732975489865,10.36740804,3677.0,3676.9,35.06542608]
[1732975490092,10.36740804,3677.0,3676.9,36.00146717]
[1732975490798,10.31740804,3677.0,3676.9,36.00146717]
[1732975491107,9.91740804,3677.0,3676.9,36.20266021]
[1732975491694,10.62740804,3677.0,3676.9,36.20266021]
[1732975492395,9.62801603,3677.0,3676.9,36.20266021]
[1732975492557,8.95801603,3677.0,3676.9,36.20266021]
[1732975492757,7.25801603,3677.0,3676.9,36.20266021]
[1732975493206,6.76801603,3677.0,3676.9,36.20266021]
[1732975493499,6.76801603,3677.0,3676.9,36.73280805]
[1732975493695,6.76287555,3677.0,3676.9,36.73280805]
[1732975494782,7.87287555,3677.0,3676.9,36.73280805]
[1732975495597,7.32137401,3677.0,3676.9,36.73280805]
[1732975496481,8.43137401,3677.0,3676.9,36.73280805]
[1732975497795,8.43137401,3677.0,3676.9,35.18050805]
[1732975497960,9.99727401,3677.0,3676.9,35.18050805]
[1732975498294,10.11054375,3677.0,3676.9,35.18050805]
[1732975498469,10.11054375,3677.0,3676.9,32.18050805]
[1732975499294,10.11054375,3677.0,3676.9,39.30542034]
[1732975499498,10.11054375,3677.0,3676.9,32.73050805]
[1732975499667,11.22054375,3677.0,3676.9,35.73050805]
[1732975499872,11.22054375,3677.0,3676.9,42.30542034]
[1732975500208,11.22054375,3677.0,3676.9,35.73050805]
[1732975500956,11.22054375,3677.0,3676.9,32.79920549]
[1732975501200,11.22054375,3677.0,3676.9,30.4891205]
[1732975501403,12.33054375,3677.0,3676.9,30.4891205]
[1732975502073,12.33054375,3677.0,3676.9,23.91342306]
[1732975502582,12.33054375,3677.0,3676.9,30.48935184]
[1732975503083,13.44054375,3677.0,3676.9,30.48935184]
[1732975503901,11.87464375,3677.0,3676.9,42.30718408]
[1732975504103,11.87464375,3677.0,3676.9,35.73150805]
[1732975504343,10.87495281,3677.0,3676.9,35.73150805]
[1732975504664,4.15554716,3677.0,3676.9,35.73150805]
[1732975504867,4.15554716,3677.0,3676.9,42.3073777]
[1732975505092,4.15554716,3677.0,3676.9,35.73150805]
[1732975506307,5.26554716,3677.0,3676.9,35.73150805]
[1732975507310,3.33,3677.4,3677.3,13.76]
[1732975507511,3.33,3677.4,3677.3,32.89027522]
[1732975507695,3.33,3677.4,3677.3,35.20036021]
[1732975507886,4.44,3677.4,3677.3,35.20036021]
[1732975509497,5.55,3677.4,3677.3,35.20036021]
[1732975510086,5.55,3677.4,3677.3,41.77695508]
[1732975510416,4.55025297,3677.4,3677.3,41.77695508]
[1732975510715,4.55025297,3677.4,3677.3,25.69336021]
[1732975511089,5.66025297,3677.4,3677.3,25.69336021]
[1732975511404,1.5659,3677.8,3677.7,8.55]
[1732975511572,1.5659,3677.8,3677.7,14.62327522]
[1732975512800,2.6759,3677.8,3677.7,14.62327522]
[1732975513009,2.6759,3677.8,3677.7,13.48550799]
[1732975513214,2.6759,3677.8,3677.7,14.42101598]
[1732975513515,2.6759,3677.8,3677.7,22.24550799]
[1732975514492,3.7859,3677.8,3677.7,22.24550799]
[1732975516022,2.22,3677.8,3677.7,23.18101598]
[1732975516173,3.33,3677.8,3677.7,23.18101598]
[1732975516377,2.33034693,3677.8,3677.7,23.18101598]
[1732975517911,3.44034693,3677.8,3677.7,23.18101598]
[1732975518088,3.44034693,3677.8,3677.7,22.24550799]
[1732975518989,3.44034693,3677.8,3677.7,20.76]
[1732975518990,5.3748052,3677.8,3677.7,20.76]
[1732975519190,5.3748052,3677.8,3677.7,18.69550799]
[1732975519617,6.4848052,3677.8,3677.7,9.93550799]
[1732975520109,6.4848052,3677.8,3677.7,5.93550799]
[1732975520582,6.4848052,3677.8,3677.7,9.48550799]
[1732975521287,7.5948052,3677.8,3677.7,9.48550799]
[1732975522185,7.5948052,3677.8,3677.7,4.48550799]
[1732975522385,7.5948052,3677.8,3677.7,1.48550799]
[1732975522925,7.5948052,3677.8,3677.7,0.93550799]
[1732975523192,8.7048052,3677.8,3677.7,0.93550799]
[1732975524146,1.5962,3677.7,3677.4,3.0]
[1732975524347,1.87812204,3677.7,3677.6,0.93550799]
[1732975524715,3.08812204,3677.7,3677.6,0.93550799]
[1732975526343,4.19812204,3677.7,3677.6,0.93550799]
[1732975527248,4.19812204,3677.7,3677.6,1.87101598]
[1732975528148,5.30812204,3677.7,3677.6,1.87101598]
[1732975528309,5.30812204,3677.7,3677.6,0.93550799]
[1732975528509,5.30812204,3677.7,3677.6,1.87101598]
[1732975528748,5.30812204,3677.7,3677.6,0.93550799]
[1732975529668,6.41812204,3677.7,3677.6,0.93550799]
[1732975531222,7.52812204,3677.7,3677.6,0.93550799]
[1732975531452,7.52812204,3677.7,3677.6,1.20790799]
[1732975532929,8.63812204,3677.7,3677.6,1.27393281]
[1732975533570,8.53812204,3677.7,3677.6,2.2094408]
[1732975533737,2.66606781,3677.7,3677.6,2.2094408]
[1732975534633,3.77606781,3677.7,3677.6,2.2094408]
[1732975536152,7.1063052,3677.8,3677.6,2.2094408]
[1732975536334,7.1063052,3677.8,3677.7,8.91695582]
[1732975536670,2.23239066,3677.8,3677.7,3.88838125]
[1732975536880,2.23239066,3677.8,3677.7,12.64838125]
[1732975537741,1.83231395,3677.8,3677.7,17.64838125]
[1732975539238,1.6641,3678.3,3678.2,8.55]
[1732975539440,0.17632957,3678.3,3678.2,10.42101598]
[1732975539676,0.17632957,3678.3,3678.2,2.48558485]
[1732975540083,0.17632957,3678.3,3678.2,2.42101598]
[1732975540231,0.1,3678.7,3678.2,2.42101598]
[1732975540431,0.1,3678.7,3677.9,3.0]
[1732975540432,0.1,3678.5,3678.4,5.64368994]
[1732975540690,0.1,3678.5,3678.4,4.87101598]
[1732975540861,0.1,3678.5,3678.3,3.0]
[1732975541065,0.1,3678.5,3678.4,6.57468206]
[1732975541066,1.21,3678.5,3678.4,6.57468206]
[1732975541579,1.21,3678.5,3678.4,8.63945364]
[1732975541778,1.21,3678.5,3678.4,3.93550799]
[1732975542622,2.8082,3678.5,3678.4,0.93550799]
[1732975542906,3.9182,3678.5,3678.3,9.77743071]
[1732975543107,2.00002,3678.4,3678.3,9.77743071]
[1732975544414,2.00002,3678.4,3678.3,2.07348506]
[1732975544611,3.11002,3678.4,3678.3,2.13577528]
[1732975544799,3.11002,3678.4,3678.3,2.07348506]
[1732975546465,4.22002,3678.4,3678.3,2.07348506]
[1732975547178,1.6982,3678.3,3678.1,5.64368994]
[1732975547379,1.6982,3678.0,3677.9,5.64368994]
[1732975547614,1.6982,3678.0,3677.9,2.07348506]
[1732975547774,1.6982,3678.0,3677.9,2.1359955]
[1732975548274,2.8082,3678.0,3677.9,2.1359955]
[1732975548716,2.8082,3678.0,3677.9,9.8404841]
[1732975548873,3.1654202,3678.0,3677.9,5.1359955]
[1732975549074,3.1654202,3678.0,3677.9,2.1359955]
[1732975550016,4.2754202,3678.0,3677.9,2.1359955]
[1732975550928,4.2754202,3678.0,3677.9,9.83978618]
[1732975551589,5.3854202,3678.0,3677.9,9.83978618]
[1732975551916,5.3854202,3678.0,3677.9,6.83950069]
[1732975552118,5.3854202,3678.0,3677.9,9.83950069]
[1732975552713,5.3854202,3678.0,3677.9,7.76601563]
[1732975553031,5.3854202,3678.0,3677.9,3.33491044]
[1732975553339,6.4954202,3678.0,3677.9,3.33491044]
[1732975553687,8.8945202,3678.0,3677.9,3.33491044]
[1732975553934,8.8945202,3678.0,3677.9,4.31676504]
[1732975554333,8.8945202,3678.0,3677.9,0.33491044]
[1732975555047,10.0045202,3678.0,3677.9,3.33491044]
[1732975555398,0.1,3677.9,3677.8,3.0]
[1732975555644,2.68905222,3677.9,3677.8,3.0]
[1732975556495,3.79905222,3677.9,3677.8,3.0]
[1732975556699,3.79905222,3677.9,3677.8,6.9818546]
[1732975556936,3.69905222,3677.9,3677.8,2.07348506]
[1732975557349,3.79905222,3677.9,3677.8,2.07348506]
[1732975558140,4.90905222,3677.9,3677.8,2.07348506]
[1732975558707,1.6122,3677.8,3677.7,0.2716]
[1732975558906,2.94373724,3677.8,3677.7,0.2716]